bitfinex-derivatives/quotes_BTCF0:USTF0_20250207
["timestamp","ask_amount","ask_price","bid_price","bid_amount"]
[1738897913365,0.2056395,97728.0,97726.0,0.008]
[1738897913561,0.2056395,97728.0,97726.0,0.007]
[1738897913772,0.2056395,97728.0,97726.0,0.008]
[1738897914861,0.2046395,97728.0,97726.0,0.003]
[1738897918875,0.2046395,97728.0,97726.0,0.002]
[1738897919764,0.2046395,97728.0,97726.0,0.001]
[1738897920069,0.2046395,97728.0,97726.0,0.002]
[1738897920969,0.2046395,97728.0,97726.0,0.001]
[1738897921463,0.2046395,97728.0,97726.0,0.002]
[1738897921664,0.3608,97736.0,97726.0,0.002]
[1738897921867,0.2046282,97734.0,97726.0,0.002]
[1738897922165,0.2046302,97733.0,97726.0,0.002]
[1738897922370,0.2046344,97731.0,97726.0,0.001]
[1738897922768,0.204636,97730.0,97726.0,0.001]
[1738897923775,0.15319412,97758.0,97727.0,0.3608]
[1738897923960,0.37116544,97767.0,97748.0,0.3608]
[1738897924165,1e-08,97749.0,97748.0,0.40908]
[1738897924364,0.3608,97767.0,97766.0,0.2045597]
[1738897924571,0.2742572,97775.0,97774.0,0.204543]
[1738897924875,1e-08,97775.0,97774.0,0.565343]
[1738897925860,1e-08,97775.0,97774.0,0.568343]
[1738897926379,0.24378418,97801.0,97774.0,0.3648]
[1738897926674,0.24378418,97801.0,97797.0,0.3608]
[1738897927970,0.00015303,97809.0,97797.0,0.3608]
[1738897928167,0.005,97801.0,97797.0,0.3608]
[1738897928569,0.005,97801.0,97799.0,0.2044894]
[1738897930071,0.00015303,97809.0,97797.0,0.3608]
[1738897930372,0.00515303,97809.0,97808.0,0.5652719]
[1738897930874,0.00015303,97809.0,97808.0,0.5652719]
[1738897931374,0.00515303,97809.0,97808.0,0.5652719]
[1738897932468,0.00915303,97809.0,97808.0,0.5662719]
[1738897938876,0.2044859,97802.0,97790.0,0.12061893]
[1738897939070,0.2044893,97800.0,97790.0,0.13092996]
[1738897939274,0.0321,97799.0,97790.0,0.13092996]
[1738897941187,0.0321,97799.0,97790.0,0.12061893]
[1738897941379,0.0321,97799.0,97789.0,0.0001534]
[1738897941683,0.2045091,97791.0,97789.0,0.0001534]
[1738897941883,0.0341,97799.0,97789.0,0.0001534]
[1738897942078,0.0341,97799.0,97789.0,0.12077233]
[1738897942380,0.0341,97799.0,97791.0,0.2045067]
[1738897942583,0.0341,97799.0,97793.0,0.2045027]
[1738897943382,0.0321,97799.0,97793.0,0.2045027]
[1738897943581,0.0341,97799.0,97793.0,0.2045027]
[1738897943977,0.0321,97799.0,97789.0,0.12077233]
[1738897944175,0.3608,97797.0,97789.0,0.0001534]
[1738897944480,0.2045095,97790.0,97789.0,0.0001534]
[1738897945593,0.2045486,97772.0,97765.0,0.04804]
[1738897945773,0.3608,97795.0,97760.0,0.12061893]
[1738897945774,0.2045514,97770.0,97760.0,0.12061893]
[1738897946090,0.2045514,97770.0,97757.0,0.3608]
[1738897946270,0.3608,97772.0,97751.0,0.0304]
[1738897946476,0.3608,97772.0,97748.0,0.3608]
[1738897946477,0.3608,97758.0,97748.0,0.36208]
[1738897946676,0.3608,97758.0,97739.0,0.04824]
[1738897946885,0.2045896,97752.0,97743.0,0.0001534]
[1738897947189,0.3608,97758.0,97743.0,0.0001534]
[1738897947190,0.2045987,97748.0,97743.0,0.0001534]
[1738897947389,0.3608,97744.0,97743.0,0.0001534]
[1738897947784,0.0331,97747.0,97743.0,0.0001534]
[1738897949788,0.0331,97747.0,97743.0,0.0041534]
[1738897950190,0.0331,97747.0,97743.0,0.0031534]
[1738897950191,0.2377008,97747.0,97743.0,0.0031534]
[1738897950685,0.2377008,97747.0,97743.0,0.0041534]
[1738897951080,0.0331,97747.0,97743.0,0.0041534]
[1738897953088,0.0331,97747.0,97743.0,0.0031534]
[1738897953291,0.0331,97747.0,97743.0,0.0001534]
[1738897953991,0.0331,97747.0,97743.0,0.0031534]
[1738897955083,0.0331,97747.0,97743.0,0.0021534]
[1738897956191,0.2046045,97745.0,97743.0,0.0011534]
[1738897956585,0.2046045,97745.0,97743.0,0.0001534]
[1738897957392,0.2066045,97745.0,97743.0,0.0001534]
[1738897957980,0.2066045,97745.0,97727.0,0.37119939]
[1738897957981,0.2046262,97735.0,97727.0,0.3608]
[1738897959595,0.2046262,97735.0,97728.0,0.00353486]
[1738897960191,0.2046262,97735.0,97728.0,0.00153486]
[1738897960397,0.2046262,97735.0,97728.0,0.00753486]
[1738897963798,0.2046344,97731.0,97728.0,0.00753486]
[1738897964100,0.204636,97730.0,97728.0,0.00753486]
[1738897965405,0.204636,97730.0,97728.0,0.00653486]
[1738897966602,0.204636,97730.0,97728.0,0.00553486]
[1738897968496,0.3608,97737.0,97728.0,0.00553486]
[1738897968707,0.00015348,97741.0,97728.0,0.00553486]
[1738897969106,0.00015348,97741.0,97732.0,0.2046301]
[1738897969799,0.3608,97740.0,97732.0,0.2046301]
[1738897970405,0.3608,97740.0,97732.0,0.2076301]
[1738897970703,0.5654151,97740.0,97732.0,0.2076301]
[1738897972306,0.3608,97740.0,97732.0,0.003]
[1738897972507,0.3608,97740.0,97738.0,0.204617]
[1738897973415,0.3608,97740.0,97732.0,0.003]
[1738897973604,0.3608,97740.0,97732.0,0.002]
[1738897974004,0.3608,97740.0,97730.0,0.12061893]
[1738897974005,0.3618,97740.0,97730.0,0.12061893]
[1738897974713,0.3608,97740.0,97732.0,0.002]
[1738897975403,0.3608,97740.0,97732.0,0.003]
[1738897976007,0.3608,97740.0,97736.0,0.2046214]
[1738897976305,0.3608,97740.0,97732.0,0.003]
[1738897976605,0.5654161,97740.0,97732.0,0.001]
[1738897977512,0.3608,97740.0,97732.0,0.2056304]
[1738897978109,0.00015348,97741.0,97732.0,0.2056304]
[1738897978315,0.00015348,97741.0,97732.0,0.2046304]
[1738897979005,0.00015348,97741.0,97732.0,0.2076304]
[1738897979509,0.00015348,97741.0,97732.0,0.2056304]
[1738897979709,0.00015348,97741.0,97732.0,0.002]
[1738897979917,0.204627,97734.0,97732.0,0.003]
[1738897981208,0.0307,97733.0,97732.0,0.003]
[1738897981412,0.0307,97733.0,97732.0,0.24520238]
[1738897982908,0.0307,97733.0,97732.0,0.24420238]
[1738897983216,0.0307,97733.0,97732.0,0.24520238]
[1738897983813,0.36095348,97741.0,97732.0,0.24520238]
[1738897984018,0.36095348,97741.0,97732.0,0.44983238]
[1738897984609,0.36095348,97741.0,97732.0,0.20763]
[1738897984911,0.00015348,97741.0,97732.0,0.20763]
[1738897985105,0.00015348,97741.0,97732.0,0.002]
[1738897985306,0.2046142,97740.0,97732.0,0.003]
[1738897985505,0.2046142,97740.0,97732.0,0.001]
[1738897985712,0.2046142,97740.0,97732.0,0.003]
[1738897986418,0.2046142,97740.0,97732.0,0.002]
[1738897986613,0.2046142,97740.0,97732.0,0.003]
[1738897986808,0.00015348,97741.0,97732.0,0.003]
[1738897987009,0.2046201,97738.0,97732.0,0.003]
[1738897987219,0.2046288,97733.0,97732.0,0.003]
[1738897987511,0.5654288,97733.0,97732.0,0.003]
[1738897988622,0.5654288,97733.0,97732.0,0.001]
[1738897988821,0.5654288,97733.0,97732.0,0.003]
[1738897989710,0.0303,97737.0,97732.0,0.003]
[1738897990430,0.2046225,97736.0,97732.0,0.003]
[1738897991717,0.2046225,97736.0,97732.0,0.24520238]
[1738897992118,0.2046225,97736.0,97732.0,0.24420238]
[1738897992418,0.0303,97737.0,97732.0,0.44983248]
[1738897993727,0.2046268,97734.0,97732.0,0.24520238]
[1738897994530,0.3608,97733.0,97732.0,0.24520238]
[1738897994727,0.3608,97733.0,97732.0,0.24320238]
[1738897994928,0.3608,97733.0,97732.0,0.24520238]
[1738897995330,0.3608,97733.0,97732.0,0.24420238]
[1738897995637,0.3608,97733.0,97732.0,0.24520238]
[1738897997442,0.2046268,97734.0,97732.0,0.24520238]
[1738897997940,0.3608,97733.0,97732.0,0.24520238]
[1738897999037,0.2046268,97734.0,97732.0,0.24520238]
[1738897999236,0.2046268,97734.0,97732.0,0.24320238]
[1738897999459,0.2046268,97734.0,97732.0,0.24520238]
[1738897999630,0.2046268,97734.0,97732.0,0.003]
[1738898001742,0.3608,97733.0,97728.0,0.00153486]
[1738898001930,0.3608,97733.0,97722.0,0.00015348]
[1738898002130,0.5654498,97723.0,97722.0,0.00015348]
[1738898003139,0.5654498,97723.0,97722.0,0.00515348]
[1738898004641,0.5654498,97723.0,97722.0,0.00715348]
[1738898005330,0.5664498,97723.0,97722.0,0.00515348]
[1738898006043,0.5694498,97723.0,97722.0,0.00015348]
[1738898006541,0.5664498,97723.0,97722.0,0.00015348]
[1738898006730,0.5704498,97723.0,97722.0,0.00015348]
[1738898007736,0.57956853,97723.0,97722.0,0.00015348]
[1738898007938,0.58056853,97723.0,97722.0,0.00015348]
[1738898008143,0.57656853,97723.0,97722.0,0.00015348]
[1738898008343,0.57956853,97723.0,97722.0,0.00015348]
[1738898008541,0.57856853,97723.0,97722.0,0.00015348]
[1738898008846,0.57956853,97723.0,97722.0,0.00015348]
[1738898009341,0.58156853,97723.0,97722.0,0.00015348]
[1738898009942,0.57656853,97723.0,97722.0,0.00015348]
[1738898010244,0.57956853,97723.0,97722.0,0.00015348]
[1738898012246,0.37291873,97723.0,97701.0,0.03443508]
[1738898012444,0.5654811,97709.0,97701.0,0.03443508]
[1738898012744,0.3608,97715.0,97707.0,0.2046815]
[1738898012950,0.3608,97715.0,97708.0,0.2046798]
[1738898014554,0.3608,97715.0,97708.0,0.2056798]
[1738898015345,0.3608,97715.0,97708.0,0.001]
[1738898015756,0.3608,97715.0,97708.0,0.003]
[1738898016448,0.3608,97715.0,97708.0,0.002]
[1738898016745,0.3608,97715.0,97708.0,0.003]
[1738898017743,0.3608,97715.0,97711.0,0.2046738]
[1738898017938,0.3608,97715.0,97712.0,0.0318]
[1738898018553,0.3608,97715.0,97713.0,0.2046707]
[1738898026556,0.00015348,97721.0,97712.0,0.0318]
[1738898026756,0.00015348,97721.0,97714.0,0.2046673]
[1738898032374,0.00015348,97721.0,97715.0,0.182721]
[1738898033258,0.00015348,97721.0,97717.0,0.2046604]
[1738898033768,0.00115348,97721.0,97717.0,0.2046604]
[1738898034473,0.00215348,97721.0,97717.0,0.2046604]
[1738898035672,0.00215348,97721.0,97715.0,0.182721]
[1738898036074,0.2046637,97717.0,97715.0,0.182721]
[1738898037564,0.2056637,97717.0,97715.0,0.182721]
[1738898038468,0.001,97717.0,97715.0,0.182721]
[1738898043879,0.2046644,97716.0,97715.0,0.182721]
[1738898045076,0.2678644,97716.0,97715.0,0.182721]
[1738898046985,0.2688644,97716.0,97715.0,0.182721]
[1738898047173,0.27915428,97716.0,97715.0,0.182721]
[1738898047569,0.28115428,97716.0,97715.0,0.182721]
[1738898048185,0.28215428,97716.0,97715.0,0.182721]
[1738898048870,0.64295428,97716.0,97715.0,0.182721]
[1738898049278,0.2046854,97706.0,97705.0,0.30387794]
[1738898049482,0.3608,97708.0,97702.0,0.00015348]
[1738898049682,0.2046916,97703.0,97702.0,0.00015348]
[1738898050775,0.2046916,97703.0,97702.0,0.00215348]
[1738898050973,0.3608,97708.0,97705.0,0.001]
[1738898051788,0.3608,97708.0,97702.0,0.00215348]
[1738898051789,0.3608,97708.0,97702.0,0.00315348]
[1738898052581,0.3608,97708.0,97705.0,0.001]
[1738898053788,0.5654812,97708.0,97705.0,0.001]
[1738898054382,0.3608,97708.0,97705.0,0.001]
[1738898054685,0.15285227,97713.0,97705.0,0.001]
[1738898054686,0.15285227,97713.0,97705.0,0.2056873]
[1738898055083,0.15285227,97713.0,97705.0,0.2066873]
[1738898055483,0.15285227,97713.0,97705.0,0.002]
[1738898055678,0.5654803,97709.0,97705.0,0.002]
[1738898055878,0.3608,97709.0,97705.0,0.002]
[1738898056088,0.2046844,97707.0,97705.0,0.002]
[1738898056686,0.2046844,97707.0,97705.0,0.001]
[1738898056886,0.2046844,97707.0,97705.0,0.002]
[1738898057783,0.3608,97709.0,97705.0,0.002]
[1738898057982,0.3608,97709.0,97705.0,0.001]
[1738898058187,0.3608,97709.0,97705.0,0.002]
[1738898061988,0.2046832,97708.0,97705.0,0.002]
[1738898064394,0.2046845,97707.0,97705.0,0.002]
[1738898067793,0.2047226,97689.0,97685.0,0.30387794]
[1738898068185,0.2047258,97687.0,97685.0,0.30387794]
[1738898069991,0.2047258,97687.0,97685.0,0.30687794]
[1738898070183,0.2057258,97687.0,97685.0,0.31487794]
[1738898070690,0.2057258,97687.0,97685.0,0.31187794]
[1738898070886,0.2057258,97687.0,97685.0,0.31487794]
[1738898071901,0.2057258,97687.0,97685.0,0.011]
[1738898072992,0.0322,97688.0,97676.0,0.00015348]
[1738898073190,0.2047439,97679.0,97676.0,0.00015348]
[1738898073404,0.2047461,97677.0,97676.0,0.00015348]
[1738898074201,0.2047461,97677.0,97676.0,0.00515348]
[1738898074789,0.2057461,97677.0,97676.0,0.00515348]
[1738898075201,0.2057461,97677.0,97676.0,0.00715348]
[1738898076101,0.2047604,97671.0,97665.0,0.00153551]
[1738898077005,0.3608,97673.0,97665.0,0.00153551]
[1738898077304,0.3608,97673.0,97665.0,0.00453551]
[1738898077305,0.2047641,97669.0,97665.0,0.00453551]
[1738898077501,0.2047641,97669.0,97665.0,0.01353551]
[1738898077695,0.2047684,97667.0,97665.0,0.01353551]
[1738898078100,0.2047684,97667.0,97665.0,0.01053551]
[1738898078300,0.2047684,97667.0,97665.0,0.01353551]
[1738898079905,0.2047839,97659.0,97658.0,0.00010294]
[1738898080701,0.3608,97660.0,97643.0,0.0307]
[1738898080901,0.2008093,97647.0,97643.0,0.0307]
[1738898081203,0.1978093,97647.0,97643.0,0.2355164]
[1738898081406,0.1978093,97647.0,97643.0,0.0307]
[1738898081905,0.1978093,97647.0,97643.0,0.0337]
[1738898082911,0.1978093,97647.0,97643.0,0.0387]
[1738898083111,0.0315,97652.0,97646.0,0.2048111]
[1738898083410,0.00015357,97655.0,97645.0,0.3608]
[1738898083710,0.00015357,97655.0,97650.0,0.2048027]
[1738898084605,0.00115357,97655.0,97646.0,0.002]
[1738898085202,0.204796,97654.0,97646.0,0.002]
[1738898085399,0.2047982,97653.0,97646.0,0.002]
[1738898085900,0.2047982,97653.0,97650.0,0.002]
[1738898086511,0.3608,97653.0,97650.0,0.002]
[1738898086813,0.2048027,97651.0,97646.0,0.002]
[1738898087204,0.2048069,97649.0,97646.0,0.002]
[1738898087515,0.2048069,97649.0,97643.0,0.0307]
[1738898087516,0.2028069,97649.0,97643.0,0.0307]
[1738898087707,0.3618,97653.0,97643.0,0.0307]
[1738898087708,0.2048081,97648.0,97643.0,0.0307]
[1738898089710,0.2048081,97648.0,97646.0,0.002]
[1738898090311,0.0331,97654.0,97638.0,0.0318]
[1738898090508,0.0331,97654.0,97641.0,0.2048196]
[1738898090813,0.0331,97654.0,97644.0,0.2048151]
[1738898091210,0.001,97648.0,97644.0,0.2048151]
[1738898091412,0.002,97648.0,97644.0,0.2048151]
[1738898092712,0.001,97648.0,97644.0,0.2048151]
[1738898093520,0.2047976,97653.0,97644.0,0.2048151]
[1738898094807,0.2048133,97645.0,97638.0,0.04209288]
[1738898095002,0.0331,97654.0,97638.0,0.0318]
[1738898095811,0.12089169,97650.0,97638.0,0.0318]
[1738898096119,0.2048224,97641.0,97638.0,0.0318]
[1738898096314,0.12089169,97650.0,97638.0,0.0318]
[1738898096510,0.2048246,97640.0,97638.0,0.0318]
[1738898098822,0.204838,97634.0,97626.0,0.3931]
[1738898099019,0.204838,97634.0,97627.0,0.0304]
[1738898099518,0.12089169,97640.0,97627.0,0.0304]
[1738898099519,0.2048453,97630.0,97627.0,0.0304]
[1738898100418,0.3608,97633.0,97627.0,0.0304]
[1738898100718,0.001,97634.0,97633.0,0.2048384]
[1738898101523,0.3608,97646.0,97638.0,0.2048259]
[1738898102224,0.3712242,97646.0,97638.0,0.2048259]
[1738898103313,0.3712242,97646.0,97633.0,0.001]
[1738898103525,0.2048335,97636.0,97633.0,0.001]
[1738898103824,0.2048335,97636.0,97627.0,0.0304]
[1738898104627,0.2048354,97635.0,97633.0,0.001]
[1738898105826,0.2048531,97626.0,97614.0,0.30387794]
[1738898106031,0.2048531,97626.0,97613.0,0.2048783]
[1738898106219,0.2048531,97626.0,97612.0,0.3921]
[1738898106627,0.2048531,97626.0,97612.0,0.0313]
[1738898107030,0.2048531,97626.0,97625.0,0.003536]
[1738898107529,0.2058531,97626.0,97625.0,0.003536]
[1738898109316,0.2058531,97626.0,97625.0,0.001536]
[1738898109317,0.21794659,97626.0,97625.0,0.001536]
[1738898109517,0.22094659,97626.0,97625.0,0.001536]
[1738898110732,0.01609349,97626.0,97625.0,0.001536]
[1738898111235,0.006,97626.0,97625.0,0.001536]
[1738898111734,0.006,97626.0,97625.0,0.066136]
[1738898114925,0.006,97626.0,97625.0,0.07611995]
[1738898115527,0.00015365,97635.0,97634.0,0.2048363]
[1738898115727,0.00015365,97635.0,97634.0,0.5656363]
[1738898116634,0.00715365,97635.0,97634.0,0.5656363]
[1738898117027,0.01015365,97635.0,97634.0,0.5656363]
[1738898118436,0.00153673,97646.0,97645.0,0.2048132]
[1738898120136,0.00153673,97646.0,97645.0,0.2058132]
[1738898121837,0.00253673,97646.0,97645.0,0.2058132]
[1738898122238,0.00253673,97646.0,97645.0,0.2068132]
[1738898122740,0.00253673,97646.0,97641.0,0.3608]
[1738898123037,0.00253673,97646.0,97645.0,0.002]
[1738898124539,0.00153673,97646.0,97645.0,0.002]
[1738898124932,0.00153673,97646.0,97641.0,0.37108266]
[1738898125237,0.00153673,97646.0,97641.0,0.37308266]
[1738898125438,0.00253673,97646.0,97641.0,0.37308266]
[1738898126140,0.00153673,97646.0,97645.0,0.001]
[1738898126634,0.00153673,97646.0,97641.0,0.37108266]
[1738898126835,0.00153673,97646.0,97641.0,0.37408266]
[1738898128132,0.00153673,97646.0,97643.0,0.2048166]
[1738898128334,0.00153673,97646.0,97645.0,0.001]
[1738898128742,0.00153673,97646.0,97644.0,0.2048143]
[1738898129535,0.00153673,97646.0,97645.0,0.001]
[1738898129842,0.00015365,97655.0,97654.0,0.2047944]
[1738898131534,0.00015365,97655.0,97653.0,0.0321]
[1738898132044,0.00215365,97655.0,97653.0,0.0321]
[1738898132430,0.00415365,97655.0,97653.0,0.0321]
[1738898133337,0.00415365,97655.0,97654.0,0.2047944]
[1738898133839,0.00215365,97655.0,97654.0,0.2047944]
[1738898134041,0.00315365,97655.0,97654.0,0.2047944]
[1738898134342,0.00315365,97655.0,97654.0,0.5655944]
[1738898134844,0.00415365,97655.0,97654.0,0.5655944]
[1738898142145,0.03483624,97679.0,97676.0,0.2047467]
[1738898143339,0.03483624,97679.0,97670.0,0.3608]
[1738898143546,0.037,97678.0,97670.0,0.3608]
[1738898143943,0.037,97678.0,97677.0,0.2047461]
[1738898144145,0.046,97678.0,97677.0,0.2047461]
[1738898144543,0.042,97678.0,97677.0,0.2047461]
[1738898144742,0.036,97678.0,97677.0,0.2047461]
[1738898145047,0.044,97678.0,97677.0,0.2047461]
[1738898145443,0.045,97678.0,97677.0,0.2057461]
[1738898145945,0.012,97678.0,97677.0,0.2057461]
[1738898146444,0.009,97678.0,97677.0,0.2057461]
[1738898146643,0.013,97678.0,97677.0,0.2057461]
[1738898147342,0.001,97678.0,97677.0,0.2047461]
[1738898147559,0.003,97678.0,97677.0,0.2047461]
[1738898149951,0.12089169,97720.0,97677.0,0.2047461]
[1738898149952,0.0623,97717.0,97700.0,0.2046963]
[1738898150137,0.0623,97717.0,97701.0,0.3608]
[1738898151046,0.00015357,97711.0,97701.0,0.3608]
[1738898151343,0.00153576,97702.0,97701.0,0.3608]
[1738898151747,0.00153576,97702.0,97701.0,0.3628]
[1738898154938,0.00153576,97702.0,97701.0,0.37282402]
[1738898159153,0.00153576,97702.0,97701.0,0.01202402]
[1738898159343,0.03283576,97702.0,97701.0,0.01202402]
[1738898159939,0.03283576,97702.0,97701.0,0.002]
[1738898160339,0.03283576,97702.0,97692.0,0.00015357]
[1738898160548,0.3608,97699.0,97681.0,0.3608]
[1738898160753,0.2047398,97681.0,97679.0,0.00997598]
[1738898160955,0.3608,97689.0,97670.0,0.52949169]
[1738898161156,0.3608,97689.0,97670.0,0.53073169]
[1738898161650,0.3608,97689.0,97670.0,0.36204]
[1738898161845,0.001,97681.0,97679.0,0.006]
[1738898162042,0.0329,97680.0,97679.0,0.006]
[1738898163049,0.0329,97680.0,97671.0,0.0163091]
[1738898163354,0.0329,97680.0,97671.0,0.006]
[1738898163551,0.0307,97679.0,97671.0,0.006]
[1738898164252,0.0307,97679.0,97671.0,0.2107576]
[1738898164557,0.0307,97679.0,97670.0,0.48304526]
[1738898164853,0.2047494,97676.0,97670.0,0.37124938]
[1738898165447,0.2047494,97676.0,97671.0,0.004]
[1738898165943,0.2047494,97676.0,97671.0,0.001]
[1738898166355,0.2047494,97676.0,97670.0,0.37648938]
[1738898166557,0.2047494,97676.0,97670.0,0.37524938]
[1738898167751,0.2047494,97676.0,97671.0,0.001]
[1738898168352,0.2047494,97676.0,97670.0,0.37124938]
[1738898168555,0.2047513,97675.0,97670.0,0.37224938]
[1738898169061,0.2047513,97675.0,97670.0,0.37124938]
[1738898169360,0.2047513,97675.0,97671.0,0.001]
[1738898169762,0.0307,97679.0,97671.0,0.2057572]
[1738898170263,0.0307,97679.0,97671.0,0.001]
[1738898170461,0.3608,97672.0,97671.0,0.001]
[1738898170666,0.3608,97672.0,97670.0,0.00015357]
[1738898170852,0.3608,97672.0,97670.0,0.00115357]
[1738898171162,0.5655566,97672.0,97670.0,0.00115357]
[1738898171362,0.5655566,97672.0,97670.0,0.00015357]
[1738898171749,0.5655566,97672.0,97671.0,0.001]
[1738898172154,0.5655566,97672.0,97670.0,0.00015357]
[1738898172353,0.5655566,97672.0,97670.0,0.00115357]
[1738898173954,0.5655566,97672.0,97670.0,0.00015357]
[1738898174765,0.0307,97679.0,97670.0,0.00115357]
[1738898175862,0.0307,97679.0,97671.0,0.0331]
[1738898177757,0.0307,97679.0,97671.0,0.0341]
[1738898178164,0.0307,97679.0,97671.0,0.0331]
[1738898178966,0.0307,97679.0,97671.0,0.0341]
[1738898180864,0.0307,97679.0,97674.0,0.3608]
[1738898182457,0.426823,97689.0,97679.0,0.2047409]
[1738898182664,0.2221,97689.0,97683.0,0.3608]
[1738898183062,0.2221,97689.0,97684.0,0.2047315]
[1738898183261,0.2047282,97686.0,97683.0,0.3608]
[1738898183461,0.002,97679.0,97674.0,0.4098]
[1738898183763,0.206742,97679.0,97674.0,0.4086]
[1738898184068,0.002,97679.0,97674.0,0.4086]
[1738898184662,0.001,97679.0,97674.0,0.4086]
[1738898184865,0.2047306,97685.0,97674.0,0.4086]
[1738898185265,0.2047326,97684.0,97674.0,0.4086]
[1738898185468,0.2047503,97675.0,97674.0,0.3608]
[1738898186768,0.2047587,97671.0,97670.0,0.00015357]
[1738898186971,0.5655587,97671.0,97670.0,0.00015357]
[1738898189573,0.3608,97671.0,97670.0,0.00115357]
[1738898189966,0.0321,97674.0,97670.0,0.00115357]
[1738898190165,0.2047475,97677.0,97670.0,0.00115357]
[1738898191567,0.18317192,97678.0,97670.0,0.00115357]
[1738898191771,0.2047577,97672.0,97670.0,0.00115357]
[1738898194070,0.2047577,97672.0,97670.0,0.00015357]
[1738898194273,0.2047577,97672.0,97670.0,0.00115357]
[1738898196174,0.3608,97671.0,97670.0,0.00115357]
[1738898205881,0.2559526,97670.0,97655.0,0.00153599]
[1738898206068,0.2047902,97656.0,97655.0,0.00153599]
[1738898207377,0.2057902,97656.0,97655.0,0.00953599]
[1738898209578,0.2077902,97656.0,97655.0,0.00153599]
[1738898210081,0.2087902,97656.0,97655.0,0.00153599]
[1738898210579,0.2057902,97656.0,97655.0,0.00153599]
[1738898210772,0.2077902,97656.0,97655.0,0.00153599]
[1738898211872,0.2067902,97656.0,97655.0,0.00153599]
[1738898212071,0.2077902,97656.0,97655.0,0.00153599]
[1738898212481,0.218215,97656.0,97655.0,0.00153599]
[1738898213478,0.217215,97656.0,97655.0,0.00153599]
[1738898213866,0.216215,97656.0,97655.0,0.00153599]
[1738898214072,0.217215,97656.0,97655.0,0.00153599]
[1738898215868,0.216215,97656.0,97655.0,0.00153599]
[1738898216072,0.219215,97656.0,97655.0,0.00153599]
[1738898216482,0.216215,97656.0,97655.0,0.00153599]
[1738898216675,0.219215,97656.0,97655.0,0.00153599]
[1738898216870,0.204809,97647.0,97646.0,0.18273647]
[1738898218583,0.204809,97647.0,97646.0,0.00015357]
[1738898219281,0.206809,97647.0,97646.0,0.00015357]
[1738898219781,0.210809,97647.0,97646.0,0.00115357]
[1738898219982,0.213809,97647.0,97646.0,0.00115357]
[1738898220384,0.211809,97647.0,97646.0,0.00015357]
[1738898221481,0.210809,97647.0,97646.0,0.00015357]
[1738898221982,0.211809,97647.0,97646.0,0.00015357]
[1738898222382,0.204809,97647.0,97646.0,0.00015357]
[1738898222591,0.211809,97647.0,97646.0,0.00015357]
[1738898225084,0.006,97647.0,97646.0,0.00015357]
[1738898225690,0.006,97647.0,97646.0,0.06305357]
[1738898225884,0.007,97647.0,97646.0,0.06305357]
[1738898226090,0.1533885,97654.0,97646.0,0.42385357]
[1738898226387,0.1034885,97654.0,97653.0,0.2047964]
[1738898226779,0.1034885,97654.0,97646.0,0.42505357]
[1738898226979,0.1034885,97654.0,97646.0,0.4341169]
[1738898227596,0.2221,97655.0,97646.0,0.4351169]
[1738898227783,0.2221,97655.0,97654.0,0.3608]
[1738898229192,0.10502496,97667.0,97654.0,0.3618]
[1738898229393,0.001,97655.0,97654.0,0.3678]
[1738898231489,0.001,97655.0,97654.0,0.3608]
[1738898231690,0.2047776,97662.0,97654.0,0.3648]
[1738898232982,0.00153646,97667.0,97654.0,0.3648]
[1738898233190,0.00153646,97667.0,97663.0,0.2047737]
[1738898233389,0.00153646,97667.0,97664.0,0.0635]
[1738898233585,0.00153646,97667.0,97664.0,0.4243]
[1738898233997,0.2047693,97666.0,97664.0,0.4243]
[1738898234900,0.00115357,97665.0,97664.0,0.4243]
[1738898235696,0.00215357,97665.0,97664.0,0.4243]
[1738898236095,0.00115357,97665.0,97664.0,0.4243]
[1738898236399,0.00115357,97665.0,97664.0,0.0635]
[1738898237201,0.2047818,97660.0,97659.0,0.3608]
[1738898238900,0.2047818,97660.0,97659.0,0.3628]
[1738898239305,0.2047818,97660.0,97659.0,0.3608]
[1738898240201,0.2057818,97660.0,97659.0,0.3608]
[1738898240997,0.2047818,97660.0,97659.0,0.3608]
[1738898241597,0.00015357,97665.0,97659.0,0.3608]
[1738898241807,0.00015357,97665.0,97659.0,0.3628]
[1738898242195,0.20492487,97665.0,97659.0,0.3608]
[1738898242489,0.20492487,97665.0,97659.0,0.3618]
[1738898243806,0.00015357,97665.0,97659.0,0.3618]
[1738898244001,0.00015357,97665.0,97659.0,0.5665829]
[1738898244899,0.00015357,97665.0,97659.0,0.3618]
[1738898245108,0.2047818,97660.0,97659.0,0.3618]
[1738898245300,0.2047818,97660.0,97659.0,0.3628]
[1738898245806,0.2047818,97660.0,97659.0,0.3608]
[1738898246010,0.2047818,97660.0,97659.0,0.3628]
[1738898246208,0.00015357,97665.0,97659.0,0.3628]
[1738898247598,0.00015357,97665.0,97659.0,0.3618]
[1738898248199,0.00015357,97665.0,97659.0,0.3628]
[1738898248401,0.2047752,97664.0,97659.0,0.3628]
[1738898249708,0.2047752,97664.0,97659.0,0.002]
[1738898251607,0.2047785,97662.0,97659.0,0.002]
[1738898251804,0.00015357,97665.0,97659.0,0.001]
[1738898252005,0.2047829,97660.0,97659.0,0.001]
[1738898252402,0.2047829,97660.0,97659.0,0.002]
[1738898253513,0.00015357,97665.0,97659.0,0.002]
[1738898253906,0.00015357,97665.0,97658.0,0.3608]
[1738898254105,0.2047734,97664.0,97659.0,0.002]
[1738898254406,0.2047785,97662.0,97659.0,0.002]
[1738898254613,0.0309,97661.0,97659.0,0.002]
[1738898255014,0.0309,97661.0,97659.0,0.001]
[1738898257615,0.0309,97661.0,97658.0,0.3608]
[1738898257817,0.2047836,97660.0,97658.0,0.3608]
[1738898258205,0.204809,97647.0,97646.0,0.18397647]
[1738898258516,0.565609,97647.0,97646.0,0.18273647]
[1738898259316,0.57570061,97647.0,97646.0,0.18273647]
[1738898260721,0.6255025,97647.0,97646.0,0.00115357]
[1738898261124,0.2048132,97645.0,97629.0,0.5433829]
[1738898262313,0.2048132,97645.0,97630.0,0.32573619]
[1738898262511,0.4111219,97647.0,97644.0,0.00353599]
[1738898262713,0.41060189,97647.0,97644.0,0.00353599]
[1738898263117,0.2048111,97646.0,97644.0,0.00353599]
[1738898264218,0.41060189,97647.0,97644.0,0.00353599]